[Event "January 2 Early 2024"]
[Site "https://www.chess.com"]
[Date "2024.01.02"]
[Round "7"]
[White "Nayak Rajesh"]
[Black "Subramanian, Anusha"]
[Result "1-0"]
[Board "169"]
[TimeControl "180+1"]
[WhiteFideId "35017152"]
[BlackFideId "477710"]
[WhiteElo "2365"]
[BlackElo "2128"]
[WhiteTeam "IND"]
[BlackTeam "ENG"]
[WhiteClock "0:00:49"]
[BlackClock "0:00:03"]

1. b3 {[%clk 0:02:51]}  e5 {[%clk 0:02:59]} 2. Bb2 {[%clk 0:02:46]}  Nc6 {[%clk 0:02:59]} 3. e3 {[%clk 0:02:47]}  d5 {[%clk 0:02:58]} 4. Bb5 {[%clk 0:02:48]}  Bd6 {[%clk 0:02:59]} 5. Nf3 {[%clk 0:02:47]}  f6 {[%clk 0:02:52]} 6. O-O {[%clk 0:02:46]}  Ne7 {[%clk 0:02:50]} 7. d3 {[%clk 0:02:43]}  O-O {[%clk 0:02:46]} 8. Nbd2 {[%clk 0:02:41]}  Bg4 {[%clk 0:02:46]} 9. h3 {[%clk 0:02:40]}  Bh5 {[%clk 0:02:46]} 10. Qe1 {[%clk 0:02:34]}  a6 {[%clk 0:02:34]} 11. Bxc6 {[%clk 0:02:33]}  Nxc6 {[%clk 0:02:35]} 12. e4 {[%clk 0:02:34]}  d4 {[%clk 0:02:34]} 13. Nh2 {[%clk 0:02:29]}  Nb4 {[%clk 0:02:25]} 14. Rc1 {[%clk 0:02:27]}  c5 {[%clk 0:02:25]} 15. a3 {[%clk 0:02:27]}  Nc6 {[%clk 0:02:24]} 16. Nc4 {[%clk 0:02:24]}  b5 {[%clk 0:02:23]} 17. Nxd6 {[%clk 0:02:24]}  Qxd6 {[%clk 0:02:23]} 18. Rb1 {[%clk 0:02:23]}  Rac8 {[%clk 0:02:14]} 19. Bc1 {[%clk 0:02:23]}  Bf7 {[%clk 0:02:07]} 20. f4 {[%clk 0:02:23]}  c4 {[%clk 0:02:06]} 21. bxc4 {[%clk 0:02:19]}  bxc4 {[%clk 0:02:05]} 22. Rb6 {[%clk 0:02:14]}  Qc5 {[%clk 0:01:47]} 23. Rb7 {[%clk 0:02:05]}  Na5 {[%clk 0:01:32]} 24. Rb2 {[%clk 0:01:59]}  cxd3 {[%clk 0:01:18]} 25. cxd3 {[%clk 0:01:58]}  Nb3 {[%clk 0:01:08]} 26. Rb1 {[%clk 0:01:49]}  Nxc1 {[%clk 0:01:06]} 27. Qxc1 {[%clk 0:01:46]}  Qa5 {[%clk 0:00:58]} 28. Qb2 {[%clk 0:01:35]}  Rc3 {[%clk 0:00:58]} 29. fxe5 {[%clk 0:01:34]}  fxe5 {[%clk 0:00:58]} 30. Rf3 {[%clk 0:01:26]}  Qxa3 {[%clk 0:00:52]} 31. Qf2 {[%clk 0:01:16]}  Qe7 {[%clk 0:00:41]} 32. Rf1 {[%clk 0:01:14]}  Rcc8 {[%clk 0:00:37]} 33. Ng4 {[%clk 0:01:10]}  Rc5 {[%clk 0:00:25]} 34. Qg3 {[%clk 0:01:03]}  Qe6 {[%clk 0:00:09]} 35. Rf5 {[%clk 0:00:59]}  a5 {[%clk 0:00:08]} 36. Nxe5 {[%clk 0:00:58]}  Rc7 {[%clk 0:00:06]} 37. Ng4 {[%clk 0:00:55]}  a4 {[%clk 0:00:05]} 38. Qxc7 {[%clk 0:00:55]}  a3 {[%clk 0:00:04]} 39. Rxf7 {[%clk 0:00:50]}  Rxf7 {[%clk 0:00:04]} 40. Qd8+ {[%clk 0:00:50]}  Rf8 {[%clk 0:00:03]} 41. Qxf8# {[%clk 0:00:49]} 1-0

[Event "January 2 Early 2024"]
[Site "https://www.chess.com"]
[Date "2024.01.02"]
[Round "7"]
[White "SkinnyPuppy8"]
[Black "Povshednyi, Ivan"]
[Result "1-0"]
[Board "172"]
[TimeControl "180+1"]
[BlackFideId "14190907"]
[WhiteElo "2279"]
[BlackElo "2584"]
[BlackTeam "UKR"]
[WhiteClock "0:00:09"]
[BlackClock "0:00:20"]

1. e4 {[%clk 0:03:00]}  c5 {[%clk 0:02:59]} 2. Nf3 {[%clk 0:03:00]}  e6 {[%clk 0:02:58]} 3. d3 {[%clk 0:03:00]}  Nc6 {[%clk 0:02:57]} 4. g3 {[%clk 0:03:00]}  Nf6 {[%clk 0:02:57]} 5. Bg2 {[%clk 0:03:00]}  d5 {[%clk 0:02:58]} 6. Nbd2 {[%clk 0:03:00]}  Bd6 {[%clk 0:02:58]} 7. O-O {[%clk 0:03:00]}  O-O {[%clk 0:02:59]} 8. Re1 {[%clk 0:03:00]}  Bc7 {[%clk 0:02:59]} 9. c3 {[%clk 0:02:56]}  b6 {[%clk 0:02:59]} 10. e5 {[%clk 0:02:51]}  Nd7 {[%clk 0:02:59]} 11. d4 {[%clk 0:02:51]}  cxd4 {[%clk 0:03:00]} 12. cxd4 {[%clk 0:02:51]}  Ba6 {[%clk 0:02:58]} 13. Nf1 {[%clk 0:02:48]}  Rc8 {[%clk 0:02:56]} 14. Bd2 {[%clk 0:02:47]}  b5 {[%clk 0:02:47]} 15. b4 {[%clk 0:02:45]}  Nb6 {[%clk 0:02:47]} 16. Ne3 {[%clk 0:02:39]}  Nc4 {[%clk 0:02:46]} 17. Nxc4 {[%clk 0:02:38]}  bxc4 {[%clk 0:02:46]} 18. a4 {[%clk 0:02:36]}  Bb7 {[%clk 0:02:46]} 19. Bc3 {[%clk 0:02:31]}  a6 {[%clk 0:02:44]} 20. Qd2 {[%clk 0:02:31]}  Rb8 {[%clk 0:02:43]} 21. Rab1 {[%clk 0:02:28]}  Bc8 {[%clk 0:02:42]} 22. Nh4 {[%clk 0:02:19]}  Qe7 {[%clk 0:02:37]} 23. f4 {[%clk 0:02:12]}  a5 {[%clk 0:02:15]} 24. b5 {[%clk 0:02:12]}  Nb4 {[%clk 0:02:15]} 25. Rf1 {[%clk 0:01:59]}  f5 {[%clk 0:02:05]} 26. exf6 {[%clk 0:01:37]}  Rxf6 {[%clk 0:02:02]} 27. Bxb4 {[%clk 0:01:15]}  axb4 {[%clk 0:02:03]} 28. Qxb4 {[%clk 0:01:14]}  Qxb4 {[%clk 0:02:01]} 29. Rxb4 {[%clk 0:01:15]}  Bb6 {[%clk 0:01:55]} 30. Nf3 {[%clk 0:01:14]}  Ra8 {[%clk 0:01:54]} 31. Ra1 {[%clk 0:01:12]}  Bd7 {[%clk 0:01:51]} 32. Kf1 {[%clk 0:00:57]}  Be8 {[%clk 0:01:44]} 33. Ke2 {[%clk 0:00:56]}  Bg6 {[%clk 0:01:38]} 34. a5 {[%clk 0:00:50]}  Rxa5 {[%clk 0:01:30]} 35. Rxa5 {[%clk 0:00:49]}  Bxa5 {[%clk 0:01:30]} 36. Ra4 {[%clk 0:00:48]}  Bb6 {[%clk 0:01:21]} 37. Ra6 {[%clk 0:00:47]}  Bd3+ {[%clk 0:01:21]} 38. Ke3 {[%clk 0:00:45]}  Bd8 {[%clk 0:01:13]} 39. Ne5 {[%clk 0:00:44]}  Rf8 {[%clk 0:01:08]} 40. b6 {[%clk 0:00:39]}  Be7 {[%clk 0:01:02]} 41. b7 {[%clk 0:00:38]}  Bf5 {[%clk 0:00:57]} 42. Ra8 {[%clk 0:00:34]}  Bd6 {[%clk 0:00:57]} 43. Nd7 {[%clk 0:00:34]}  c3 {[%clk 0:00:52]} 44. Nxf8 {[%clk 0:00:28]}  c2 {[%clk 0:00:51]} 45. Nxe6+ {[%clk 0:00:16]}  Kf7 {[%clk 0:00:51]} 46. Ng5+ {[%clk 0:00:11]}  Kg6 {[%clk 0:00:50]} 47. Rc8 {[%clk 0:00:09]}  h6 {[%clk 0:00:34]} 48. Bxd5 {[%clk 0:00:09]}  hxg5 {[%clk 0:00:33]} 49. fxg5 {[%clk 0:00:08]}  Be7 {[%clk 0:00:27]} 50. Be4 {[%clk 0:00:07]}  Bxg5+ {[%clk 0:00:23]} 51. Kd3 {[%clk 0:00:07]}  Kf6 {[%clk 0:00:19]} 52. Bxf5 {[%clk 0:00:08]}  c1=Q {[%clk 0:00:19]} 53. Rxc1 {[%clk 0:00:07]}  Bxc1 {[%clk 0:00:20]} 54. b8=Q {[%clk 0:00:07]}  Kxf5 {[%clk 0:00:21]} 55. Qe5+ {[%clk 0:00:07]}  Kg6 {[%clk 0:00:21]} 56. Ke4 {[%clk 0:00:08]}  Bg5 {[%clk 0:00:19]} 57. Qf5+ {[%clk 0:00:08]}  Kh6 {[%clk 0:00:20]} 58. h4 {[%clk 0:00:09]}  Bf6 {[%clk 0:00:20]} 59. g4 {[%clk 0:00:08]}  Bxh4 {[%clk 0:00:20]} 60. Qh5# {[%clk 0:00:09]} 1-0

[Event "January 2 Early 2024"]
[Site "https://www.chess.com"]
[Date "2024.01.02"]
[Round "7"]
[White "Hartikainen, Jarmo"]
[Black "Korol, Dimitry"]
[Result "0-1"]
[Board "176"]
[TimeControl "180+1"]
[WhiteFideId "503134"]
[BlackFideId "14108003"]
[WhiteElo "2150"]
[BlackElo "2316"]
[WhiteTeam "FIN"]
[BlackTeam "UKR"]
[WhiteClock "0:00:01"]
[BlackClock "0:01:05"]

1. e4 {[%clk 0:03:00]}  c5 {[%clk 0:03:00]} 2. c3 {[%clk 0:03:00]}  d5 {[%clk 0:03:00]} 3. exd5 {[%clk 0:03:00]}  Qxd5 {[%clk 0:03:01]} 4. d4 {[%clk 0:03:00]}  cxd4 {[%clk 0:03:02]} 5. cxd4 {[%clk 0:03:00]}  Nc6 {[%clk 0:03:02]} 6. Nf3 {[%clk 0:03:00]}  e5 {[%clk 0:03:02]} 7. Nc3 {[%clk 0:02:54]}  Bb4 {[%clk 0:03:01]} 8. Bd2 {[%clk 0:02:54]}  Bxc3 {[%clk 0:03:02]} 9. Bxc3 {[%clk 0:02:55]}  e4 {[%clk 0:03:02]} 10. Ne5 {[%clk 0:02:55]}  Nxe5 {[%clk 0:03:02]} 11. dxe5 {[%clk 0:02:56]}  Ne7 {[%clk 0:03:03]} 12. Qxd5 {[%clk 0:02:12]}  Nxd5 {[%clk 0:03:04]} 13. Bb5+ {[%clk 0:02:11]}  Bd7 {[%clk 0:03:04]} 14. Bxd7+ {[%clk 0:02:11]}  Kxd7 {[%clk 0:03:05]} 15. O-O-O {[%clk 0:02:11]}  Ke6 {[%clk 0:03:05]} 16. Bd4 {[%clk 0:01:32]}  Nf4 {[%clk 0:03:04]} 17. Kb1 {[%clk 0:01:21]}  Rhd8 {[%clk 0:02:52]} 18. Rhe1 {[%clk 0:01:00]}  Nd3 {[%clk 0:02:51]} 19. Rxe4 {[%clk 0:00:53]}  Nxf2 {[%clk 0:02:51]} 20. Bxf2 {[%clk 0:00:35]}  Rxd1+ {[%clk 0:02:50]} 21. Kc2 {[%clk 0:00:35]}  Rd5 {[%clk 0:02:20]} 22. Bd4 {[%clk 0:00:19]}  Rc8+ {[%clk 0:02:13]} 23. Bc3 {[%clk 0:00:16]}  h5 {[%clk 0:02:00]} 24. Rh4 {[%clk 0:00:15]}  Rxe5 {[%clk 0:01:53]} 25. a4 {[%clk 0:00:13]}  g6 {[%clk 0:01:43]} 26. Kb3 {[%clk 0:00:12]}  Re2 {[%clk 0:01:40]} 27. Rf4 {[%clk 0:00:12]}  Rxg2 {[%clk 0:01:31]} 28. h4 {[%clk 0:00:12]}  Rg4 {[%clk 0:01:28]} 29. Rf6+ {[%clk 0:00:12]}  Ke7 {[%clk 0:01:27]} 30. Rf2 {[%clk 0:00:08]}  f5 {[%clk 0:01:14]} 31. Be1 {[%clk 0:00:04]}  Rxh4 {[%clk 0:01:05]} 32. Re2+ {[%clk 0:00:01]}  Re4 {[%clk 0:01:05]} 0-1

[Event "January 2 Early 2024"]
[Site "https://www.chess.com"]
[Date "2024.01.02"]
[Round "7"]
[White "Tilahun , Abel Mathewos"]
[Black "Munoz Sanchez, Miguel"]
[Result "0-1"]
[Board "177"]
[TimeControl "180+1"]
[WhiteFideId "15702391"]
[BlackFideId "3600734"]
[WhiteElo "2070"]
[BlackElo "2302"]
[WhiteTeam "ETH"]
[BlackTeam "ECU"]
[WhiteClock "0:00:01"]
[BlackClock "0:00:09"]

1. d4 {[%clk 0:03:00]}  d5 {[%clk 0:02:55]} 2. c4 {[%clk 0:03:01]}  c6 {[%clk 0:02:54]} 3. Nf3 {[%clk 0:03:01]}  Nf6 {[%clk 0:02:54]} 4. Nc3 {[%clk 0:03:01]}  dxc4 {[%clk 0:02:53]} 5. e3 {[%clk 0:03:00]}  Bf5 {[%clk 0:02:51]} 6. Bxc4 {[%clk 0:03:00]}  e6 {[%clk 0:02:51]} 7. O-O {[%clk 0:03:00]}  Bb4 {[%clk 0:02:50]} 8. a3 {[%clk 0:02:56]}  Bxc3 {[%clk 0:02:32]} 9. bxc3 {[%clk 0:02:57]}  Nbd7 {[%clk 0:02:28]} 10. a4 {[%clk 0:02:52]}  Ne4 {[%clk 0:02:20]} 11. Qb3 {[%clk 0:02:35]}  Qc7 {[%clk 0:01:34]} 12. Ba3 {[%clk 0:02:29]}  g5 {[%clk 0:01:30]} 13. a5 {[%clk 0:02:18]}  a6 {[%clk 0:01:21]} 14. Qb2 {[%clk 0:02:02]}  O-O-O {[%clk 0:01:13]} 15. Nd2 {[%clk 0:01:43]}  g4 {[%clk 0:01:03]} 16. Be2 {[%clk 0:01:31]}  Rhg8 {[%clk 0:00:51]} 17. Nc4 {[%clk 0:01:29]}  Ndf6 {[%clk 0:00:41]} 18. Nb6+ {[%clk 0:01:20]}  Kb8 {[%clk 0:00:41]} 19. Bxa6 {[%clk 0:01:19]}  bxa6 {[%clk 0:00:35]} 20. Rab1 {[%clk 0:00:51]}  Ka7 {[%clk 0:00:19]} 21. c4 {[%clk 0:00:24]}  Rb8 {[%clk 0:00:16]} 22. Rfc1 {[%clk 0:00:15]}  Ng5 {[%clk 0:00:14]} 23. Bc5 {[%clk 0:00:14]}  Nf3+ {[%clk 0:00:14]} 24. Kf1 {[%clk 0:00:10]}  Nxh2+ {[%clk 0:00:13]} 25. Ke2 {[%clk 0:00:09]}  Qb7 {[%clk 0:00:09]} 26. Nc8+ {[%clk 0:00:04]}  Ka8 {[%clk 0:00:09]} 27. Qxb7+ {[%clk 0:00:03]}  Rxb7 {[%clk 0:00:09]} 28. Rxb7 {[%clk 0:00:03]}  Kxb7 {[%clk 0:00:10]} 29. Nd6+ {[%clk 0:00:03]}  Kc7 {[%clk 0:00:09]} 30. Nxf7 {[%clk 0:00:04]}  Ne4 {[%clk 0:00:09]} 31. Bb6+ {[%clk 0:00:04]}  Kd7 {[%clk 0:00:07]} 32. Ne5+ {[%clk 0:00:04]}  Kc8 {[%clk 0:00:05]} 33. Rh1 {[%clk 0:00:04]}  g3 {[%clk 0:00:05]} 34. f3 {[%clk 0:00:04]}  Nc3+ {[%clk 0:00:03]} 35. Kd2 {[%clk 0:00:04]}  Na4 {[%clk 0:00:03]} 36. Nxc6 {[%clk 0:00:04]}  Nxb6 {[%clk 0:00:02]} 37. axb6 {[%clk 0:00:05]}  Kb7 {[%clk 0:00:02]} 38. Ne7 {[%clk 0:00:04]}  Rg7 {[%clk 0:00:01]} 39. Nxf5 {[%clk 0:00:04]}  exf5 {[%clk 0:00:02]} 40. c5 {[%clk 0:00:04]}  h5 {[%clk 0:00:02]} 41. Ra1 {[%clk 0:00:03]}  h4 {[%clk 0:00:03]} 42. Kc3 {[%clk 0:00:04]}  Nxf3 {[%clk 0:00:03]} 43. gxf3 {[%clk 0:00:04]}  g2 {[%clk 0:00:02]} 44. Rg1 {[%clk 0:00:04]}  h3 {[%clk 0:00:03]} 45. Kc4 {[%clk 0:00:04]}  h2 {[%clk 0:00:04]} 46. d5 {[%clk 0:00:03]}  hxg1=Q {[%clk 0:00:05]} 47. c6+ {[%clk 0:00:04]}  Kxb6 {[%clk 0:00:03]} 48. Kd4 {[%clk 0:00:05]}  Qd1+ {[%clk 0:00:02]} 49. Ke5 {[%clk 0:00:05]}  g1=Q {[%clk 0:00:03]} 50. Kf4 {[%clk 0:00:05]}  Qxe3+ {[%clk 0:00:04]} 51. Kxe3 {[%clk 0:00:04]}  Qd2+ {[%clk 0:00:05]} 52. Kxd2 {[%clk 0:00:04]}  Kc5 {[%clk 0:00:05]} 53. Ke3 {[%clk 0:00:03]}  Kxd5 {[%clk 0:00:06]} 54. Kf4 {[%clk 0:00:03]}  Kxc6 {[%clk 0:00:07]} 55. Kxf5 {[%clk 0:00:04]}  a5 {[%clk 0:00:08]} 56. f4 {[%clk 0:00:05]}  Rb7 {[%clk 0:00:08]} 57. Kf6 {[%clk 0:00:06]}  a4 {[%clk 0:00:08]} 58. Ke6 {[%clk 0:00:07]}  a3 {[%clk 0:00:09]} 59. f5 {[%clk 0:00:08]}  a2 {[%clk 0:00:09]} 60. f6 {[%clk 0:00:08]}  a1=Q {[%clk 0:00:10]} 61. f7 {[%clk 0:00:01]}  Qe1+ {[%clk 0:00:09]} 0-1

[Event "January 2 Early 2024"]
[Site "https://www.chess.com"]
[Date "2024.01.02"]
[Round "7"]
[White "Musalov, Ruslan"]
[Black "Tagliati, Eleonore"]
[Result "0-1"]
[Board "182"]
[TimeControl "180+1"]
[WhiteFideId "4141490"]
[BlackFideId "45172234"]
[WhiteElo "2431"]
[BlackElo "2172"]
[WhiteTeam "RUS"]
[BlackTeam "FRA"]
[WhiteClock "0:00:11"]
[BlackClock "0:00:12"]

1. e4 {[%clk 0:02:59]}  c5 {[%clk 0:03:00]} 2. Nf3 {[%clk 0:02:59]}  d6 {[%clk 0:03:00]} 3. d4 {[%clk 0:02:59]}  cxd4 {[%clk 0:03:01]} 4. Nxd4 {[%clk 0:03:00]}  Nf6 {[%clk 0:03:01]} 5. Nc3 {[%clk 0:03:01]}  a6 {[%clk 0:03:02]} 6. f4 {[%clk 0:03:00]}  e5 {[%clk 0:02:55]} 7. Nb3 {[%clk 0:03:00]}  Qc7 {[%clk 0:02:49]} 8. Be2 {[%clk 0:02:54]}  exf4 {[%clk 0:02:41]} 9. O-O {[%clk 0:02:53]}  Be6 {[%clk 0:02:37]} 10. Bxf4 {[%clk 0:02:51]}  Nbd7 {[%clk 0:02:38]} 11. Nd4 {[%clk 0:02:47]}  Be7 {[%clk 0:02:36]} 12. Nxe6 {[%clk 0:02:42]}  fxe6 {[%clk 0:02:37]} 13. Bg4 {[%clk 0:02:36]}  e5 {[%clk 0:02:18]} 14. Be3 {[%clk 0:02:33]}  O-O {[%clk 0:02:16]} 15. Nd5 {[%clk 0:02:28]}  Nxd5 {[%clk 0:02:06]} 16. Qxd5+ {[%clk 0:02:29]}  Kh8 {[%clk 0:02:06]} 17. Bf5 {[%clk 0:02:11]}  Nf6 {[%clk 0:02:06]} 18. Qd3 {[%clk 0:02:11]}  Rad8 {[%clk 0:02:00]} 19. c4 {[%clk 0:02:07]}  Qc6 {[%clk 0:01:48]} 20. b4 {[%clk 0:02:01]}  g6 {[%clk 0:01:46]} 21. b5 {[%clk 0:02:01]}  Qc7 {[%clk 0:01:41]} 22. Be6 {[%clk 0:02:01]}  Nh5 {[%clk 0:01:39]} 23. b6 {[%clk 0:01:51]}  Qc6 {[%clk 0:01:35]} 24. Bd5 {[%clk 0:01:51]}  Qd7 {[%clk 0:01:36]} 25. Rxf8+ {[%clk 0:01:40]}  Rxf8 {[%clk 0:01:32]} 26. Rf1 {[%clk 0:01:40]}  Rxf1+ {[%clk 0:01:13]} 27. Qxf1 {[%clk 0:01:41]}  Nf6 {[%clk 0:01:13]} 28. Bg5 {[%clk 0:01:33]}  Kg7 {[%clk 0:01:10]} 29. Qc1 {[%clk 0:01:16]}  Bd8 {[%clk 0:01:02]} 30. Be3 {[%clk 0:01:14]}  Nxd5 {[%clk 0:01:00]} 31. cxd5 {[%clk 0:01:15]}  Qg4 {[%clk 0:00:52]} 32. Qc2 {[%clk 0:01:05]}  Qd7 {[%clk 0:00:44]} 33. h3 {[%clk 0:01:01]}  h5 {[%clk 0:00:37]} 34. a4 {[%clk 0:00:57]}  Kh7 {[%clk 0:00:35]} 35. a5 {[%clk 0:00:57]}  Kg7 {[%clk 0:00:35]} 36. Bc1 {[%clk 0:00:54]}  Kg8 {[%clk 0:00:24]} 37. Be3 {[%clk 0:00:45]}  Kg7 {[%clk 0:00:23]} 38. Bg5 {[%clk 0:00:41]}  Kf7 {[%clk 0:00:11]} 39. Bxd8 {[%clk 0:00:37]}  Qxd8 {[%clk 0:00:12]} 40. Qc7+ {[%clk 0:00:37]}  Qe7 {[%clk 0:00:13]} 41. Qc8 {[%clk 0:00:29]}  Kg7 {[%clk 0:00:12]} 42. Kh2 {[%clk 0:00:26]}  Kf7 {[%clk 0:00:12]} 43. Qh8 {[%clk 0:00:26]}  Qf6 {[%clk 0:00:10]} 44. Qc8 {[%clk 0:00:11]}  Qf4+ {[%clk 0:00:10]} 45. Kh1 {[%clk 0:00:12]}  Qf1+ {[%clk 0:00:09]} 46. Kh2 {[%clk 0:00:12]}  Qf4+ {[%clk 0:00:09]} 47. Kg1 {[%clk 0:00:13]}  Qe3+ {[%clk 0:00:09]} 48. Kf1 {[%clk 0:00:13]}  Qd3+ {[%clk 0:00:10]} 49. Ke1 {[%clk 0:00:13]}  Qxe4+ {[%clk 0:00:10]} 50. Kd2 {[%clk 0:00:13]}  Qxd5+ {[%clk 0:00:10]} 51. Kc1 {[%clk 0:00:13]}  Qc5+ {[%clk 0:00:10]} 52. Qxc5 {[%clk 0:00:13]}  dxc5 {[%clk 0:00:11]} 53. Kd2 {[%clk 0:00:13]}  Ke6 {[%clk 0:00:11]} 54. Ke3 {[%clk 0:00:11]}  Kd5 {[%clk 0:00:12]} 0-1

[Event "January 2 Early 2024"]
[Site "https://www.chess.com"]
[Date "2024.01.02"]
[Round "7"]
[White "Blanco Diez, David"]
[Black "Von Buelow, Georg"]
[Result "1/2-1/2"]
[Board "183"]
[TimeControl "180+1"]
[WhiteFideId "32032927"]
[BlackFideId "4620658"]
[WhiteElo "2419"]
[BlackElo "2171"]
[WhiteTeam "ESP"]
[BlackTeam "GER"]
[WhiteClock "0:00:05"]
[BlackClock "0:00:11"]

1. e4 {[%clk 0:02:59]}  c5 {[%clk 0:02:58]} 2. c3 {[%clk 0:02:58]}  Nf6 {[%clk 0:02:58]} 3. e5 {[%clk 0:02:58]}  Nd5 {[%clk 0:02:58]} 4. d4 {[%clk 0:02:58]}  cxd4 {[%clk 0:02:58]} 5. cxd4 {[%clk 0:02:59]}  d6 {[%clk 0:02:58]} 6. Bc4 {[%clk 0:02:59]}  e6 {[%clk 0:02:58]} 7. Nf3 {[%clk 0:02:58]}  Be7 {[%clk 0:02:57]} 8. O-O {[%clk 0:02:57]}  O-O {[%clk 0:02:58]} 9. exd6 {[%clk 0:02:56]}  Qxd6 {[%clk 0:02:55]} 10. Nc3 {[%clk 0:02:56]}  Nxc3 {[%clk 0:02:56]} 11. bxc3 {[%clk 0:02:56]}  Nd7 {[%clk 0:02:56]} 12. Qd3 {[%clk 0:02:52]}  b6 {[%clk 0:02:54]} 13. Bb3 {[%clk 0:02:52]}  Bb7 {[%clk 0:02:51]} 14. Bc2 {[%clk 0:02:52]}  Nf6 {[%clk 0:02:51]} 15. Bg5 {[%clk 0:02:52]}  Be4 {[%clk 0:02:50]} 16. Qe2 {[%clk 0:02:44]}  Bxc2 {[%clk 0:02:48]} 17. Qxc2 {[%clk 0:02:45]}  Rac8 {[%clk 0:02:48]} 18. Ne5 {[%clk 0:02:43]}  Qxd4 {[%clk 0:02:35]} 19. cxd4 {[%clk 0:02:21]}  Rxc2 {[%clk 0:02:33]} 20. a4 {[%clk 0:02:15]}  Rfc8 {[%clk 0:02:24]} 21. a5 {[%clk 0:02:12]}  b5 {[%clk 0:02:24]} 22. a6 {[%clk 0:02:08]}  b4 {[%clk 0:02:12]} 23. Rfb1 {[%clk 0:01:51]}  h6 {[%clk 0:01:43]} 24. Bh4 {[%clk 0:01:18]}  g5 {[%clk 0:01:41]} 25. Bg3 {[%clk 0:01:18]}  Ne4 {[%clk 0:01:41]} 26. f3 {[%clk 0:00:58]}  Nxg3 {[%clk 0:01:25]} 27. hxg3 {[%clk 0:00:59]}  Rd2 {[%clk 0:01:25]} 28. Rc1 {[%clk 0:00:56]}  Rcc2 {[%clk 0:00:54]} 29. Rxc2 {[%clk 0:00:52]}  Rxc2 {[%clk 0:00:54]} 30. Rb1 {[%clk 0:00:44]}  Bd6 {[%clk 0:00:35]} 31. g4 {[%clk 0:00:27]}  f6 {[%clk 0:00:31]} 32. Nd7 {[%clk 0:00:25]}  Kf7 {[%clk 0:00:29]} 33. Nc5 {[%clk 0:00:17]}  Rc4 {[%clk 0:00:26]} 34. Nb3 {[%clk 0:00:15]}  Ke7 {[%clk 0:00:22]} 35. Kf2 {[%clk 0:00:15]}  Rc2+ {[%clk 0:00:19]} 36. Kf1 {[%clk 0:00:15]}  Kd7 {[%clk 0:00:17]} 37. Nc5+ {[%clk 0:00:14]}  Bxc5 {[%clk 0:00:17]} 38. dxc5 {[%clk 0:00:15]}  Rc4 {[%clk 0:00:16]} 39. Rd1+ {[%clk 0:00:15]}  Ke7 {[%clk 0:00:17]} 40. Rb1 {[%clk 0:00:12]}  e5 {[%clk 0:00:16]} 41. Ke2 {[%clk 0:00:12]}  Ke6 {[%clk 0:00:17]} 42. Rd1 {[%clk 0:00:09]}  Rxc5 {[%clk 0:00:17]} 43. Rd8 {[%clk 0:00:10]}  Rc6 {[%clk 0:00:14]} 44. Rb8 {[%clk 0:00:09]}  Rxa6 {[%clk 0:00:14]} 45. Rxb4 {[%clk 0:00:09]}  Ra2+ {[%clk 0:00:14]} 46. Kf1 {[%clk 0:00:10]}  a5 {[%clk 0:00:14]} 47. Rb6+ {[%clk 0:00:10]}  Kf7 {[%clk 0:00:15]} 48. Ra6 {[%clk 0:00:09]}  Kg6 {[%clk 0:00:15]} 49. Ra8 {[%clk 0:00:07]}  a4 {[%clk 0:00:16]} 50. Rg8+ {[%clk 0:00:08]}  Kf7 {[%clk 0:00:16]} 51. Ra8 {[%clk 0:00:09]}  a3 {[%clk 0:00:16]} 52. Ra5 {[%clk 0:00:08]}  Kg6 {[%clk 0:00:16]} 53. Kg1 {[%clk 0:00:06]}  h5 {[%clk 0:00:16]} 54. gxh5+ {[%clk 0:00:04]}  Kxh5 {[%clk 0:00:16]} 55. Kh2 {[%clk 0:00:05]}  Ra1 {[%clk 0:00:15]} 56. Ra4 {[%clk 0:00:05]}  a2 {[%clk 0:00:13]} 57. Ra5 {[%clk 0:00:05]}  f5 {[%clk 0:00:12]} 58. Ra4 {[%clk 0:00:06]}  e4 {[%clk 0:00:11]} 59. fxe4 {[%clk 0:00:05]}  fxe4 {[%clk 0:00:12]} 60. Ra3 {[%clk 0:00:06]}  e3 {[%clk 0:00:12]} 61. Kg3 {[%clk 0:00:06]}  e2 {[%clk 0:00:12]} 62. Rxa2 {[%clk 0:00:04]}  Rxa2 {[%clk 0:00:11]} 63. Kf2 {[%clk 0:00:05]}  Kg4 {[%clk 0:00:11]} 64. Ke1 {[%clk 0:00:05]}  Kg3 {[%clk 0:00:11]} 1/2-1/2